fUST/lending_fUST_20250130
["ID","MTS","AMOUNT","RATE_DAILY","PERIOD"]
[350926770,1738206646459,-151.899735,0.00016438,2]
[350926771,1738206646470,-288.854656,0.00016438,2]
[350926772,1738206646479,-1321.8,0.00016438,2]
[350926773,1738206646488,-658.79,0.00016438,2]
[350926774,1738206646498,-151.0,0.00016438,2]
[350926775,1738206646511,-500.0,0.00016438,2]
[350926776,1738206646520,-500.0,0.00016438,2]
[350926777,1738206646529,-1109.44,0.00016438,2]
[350926778,1738206646539,-7177.64,0.00016438,2]
[350926779,1738206646548,-502.55030494,0.00016438,2]
[350926780,1738206646557,-500.0,0.00016438,2]
[350926781,1738206646566,-500.0,0.00016438,2]
[350926782,1738206646575,-500.0,0.00016438,2]
[350926783,1738206646585,-151.0,0.00016438,2]
[350926784,1738206646594,-500.0,0.00016438,2]
[350926785,1738206646603,-1890.39,0.00016438,2]
[350926786,1738206646612,-503.28174335,0.00016438,2]
[350926787,1738206646622,-3747.03,0.00016438,2]
[350926788,1738206646631,-151.0,0.00016438,2]
[350926789,1738206646640,-500.0,0.00016438,2]
[350926790,1738206646649,-500.0,0.00016438,2]
[350926791,1738206646658,-500.0,0.00016438,2]
[350926792,1738206646667,-3414.06,0.00016438,2]
[350926793,1738206646677,-500.0,0.00016438,2]
[350926794,1738206646686,-960.32,0.00016438,2]
[350926795,1738206646695,-500.0,0.00016438,2]
[350926796,1738206646705,-4446.63,0.00016438,2]
[350926797,1738206646714,-175.846006,0.00016438,2]
[350926798,1738206646723,-154.429267,0.00016438,2]
[350926799,1738206646733,-500.0,0.00016438,2]
[350926800,1738206646742,-154.485144,0.00016438,2]
[350926801,1738206646750,-6680.11,0.00016438,2]
[350926802,1738206646760,-231.13,0.00016486,2]
[350926803,1738206646769,-252.84,0.00016486,2]
[350926804,1738206646778,-406.986,0.00016492,2]
[350926805,1738206646787,-397.673,0.00016492,2]
[350926806,1738206646796,-211.52026259,0.00016569,2]
[350926807,1738206646805,-323.87341322,0.00016569,2]
[350926808,1738206646814,-16141.05517535,0.0001657,5]
[350926809,1738206646828,-11151.01793392,0.0001657,5]
[350926812,1738206692554,165.442479,0.00013973,2]
[350926845,1738207546071,165.442479,0.00013973,2]
[350926848,1738207608795,500.0,0.0001452,2]
[350926856,1738207722450,15651.5091387,0.00013,2]
[350926857,1738207722483,20000.0,0.00013,2]
[350926858,1738207722510,6779.94692976,0.00013,2]
[350926904,1738207832341,-5599.7208125,0.00015339,2]
[350926906,1738207832351,-159.599,0.0001574,2]
[350926908,1738207832360,-300.0,0.00015999,2]
[350926909,1738207832370,-27989.36240331,0.00016,2]
[350926911,1738207832379,-601.2640436,0.00016044,2]
[350926913,1738207832389,-10791.36807268,0.00016255,2]
[350926915,1738207832398,-154.3747797,0.000164,2]
[350926917,1738207832408,-153.0,0.000164,2]
[350926919,1738207832417,-154.3747797,0.000164,2]
[350926921,1738207832426,-153.0,0.000164,2]
[350926923,1738207832435,-746.49677458,0.00016429,2]
[350926924,1738207832444,-246.51510603,0.00016429,2]
[350926927,1738207832466,-266.23806572,0.00016429,2]
[350926928,1738207832475,-35.76193428,0.00016429,2]
[350926931,1738207832496,-464.23806572,0.00016429,2]
[350926933,1738207832505,-746.49677458,0.00016429,2]
[350926934,1738207832514,-412.27547176,0.00016429,2]
[350926935,1738207832524,-500.0,0.00016429,2]
[350926936,1738207832533,-746.49677458,0.00016429,2]
[350926937,1738207832542,-746.49677458,0.00016429,2]
[350926938,1738207832551,-500.0,0.00016429,2]
[350926939,1738207832561,-746.49677458,0.00016429,2]
[350926940,1738207832570,-746.49677458,0.00016429,2]
[350926941,1738207832579,-500.0,0.00016429,2]
[350926942,1738207832588,-746.49677458,0.00016429,2]
[350926943,1738207832598,-585.08546397,0.00016429,2]
[350926944,1738207832625,-161.41131061,0.00016429,2]
[350926945,1738207832634,-118.41890411,0.00016429,2]
[350926946,1738207832645,-381.58109589,0.00016429,2]
[350926947,1738207832654,-746.49677458,0.00016429,2]
[350926948,1738207832663,-746.49677458,0.00016429,2]
[350926949,1738207832672,-500.0,0.00016429,2]
[350926950,1738207832681,-746.49677458,0.00016429,2]
[350926951,1738207832822,-746.49677458,0.00016429,2]
[350926952,1738207832832,-746.49677458,0.00016429,2]
[350926953,1738207832841,-746.49677458,0.00016429,2]
[350926954,1738207832851,-746.49677458,0.00016429,2]
[350926955,1738207832862,-746.49677458,0.00016429,2]
[350926956,1738207832873,-746.49677458,0.00016429,2]
[350926957,1738207832886,-746.49677458,0.00016429,2]
[350926958,1738207832896,-746.49677458,0.00016429,2]
[350926959,1738207832905,-746.49677458,0.00016429,2]
[350926960,1738207832914,-746.49677458,0.00016429,2]
[350926961,1738207832923,-226.71138925,0.00016437,2]
[350926962,1738207832933,-230.965066,0.00016438,2]
[350926963,1738207832942,-355.38779372,0.00016438,2]
[350926976,1738207838291,-828.41748852,0.00015944,2]
[350926977,1738207838300,-746.49677458,0.00016429,2]
[350926978,1738207838310,-746.49677458,0.00016429,2]
[350926979,1738207838320,-746.49677458,0.00016429,2]
[350926980,1738207838329,-746.49677458,0.00016429,2]
[350926981,1738207838339,-746.49677458,0.00016429,2]
[350926982,1738207838349,-746.49677458,0.00016429,2]
[350926983,1738207838359,-746.49677458,0.00016429,2]
[350926984,1738207838368,-746.49677458,0.00016429,2]
[350926985,1738207838377,-746.49677458,0.00016429,2]
[350926986,1738207838386,-746.49677458,0.00016429,2]
[350926987,1738207838395,-746.49677458,0.00016429,2]
[350926988,1738207838405,-746.49677458,0.00016429,2]
[350926989,1738207838414,-746.49677458,0.00016429,2]
[350926990,1738207838424,-746.49677458,0.00016429,2]
[350926991,1738207838434,-746.49677458,0.00016429,2]
[350926992,1738207838443,-746.49677458,0.00016429,2]
[350926993,1738207838452,-746.49677458,0.00016429,2]
[350926994,1738207838462,-577.42069458,0.00016429,2]
[350926995,1738207838474,-169.07608,0.00016429,2]
[350926996,1738207838483,-746.49677458,0.00016429,2]
[350926997,1738207838493,-746.49677458,0.00016429,2]
[350926998,1738207838503,-746.49677458,0.00016429,2]
[350926999,1738207838512,-746.49677458,0.00016429,2]
[350927000,1738207838522,-746.49677458,0.00016429,2]
[350927001,1738207838531,-746.49677458,0.00016429,2]
[350927002,1738207838541,-746.49677458,0.00016429,2]
[350927003,1738207838551,-746.49677458,0.00016429,2]
[350927004,1738207838560,-746.49677458,0.00016429,2]
[350927005,1738207838569,-746.49677458,0.00016429,2]
[350927006,1738207838579,-746.49677458,0.00016429,2]
[350927007,1738207838589,-746.49677458,0.00016429,2]
[350927008,1738207838599,-746.49677458,0.00016429,2]
[350927009,1738207838610,-746.49677458,0.00016429,2]
[350927010,1738207838619,-746.49677458,0.00016429,2]
[350927011,1738207838629,-746.49677458,0.00016429,2]
[350927012,1738207838639,-746.49677458,0.00016429,2]
[350927013,1738207838648,-746.49677458,0.00016429,2]
[350927014,1738207838658,-746.49677458,0.00016429,2]
[350927015,1738207838667,-144.61220628,0.00016438,2]
[350927016,1738207838677,-500.0,0.00016438,2]
[350927017,1738207838686,-508.81123239,0.00016438,2]
[350927018,1738207838695,-501.24781212,0.00016438,2]
[350927019,1738207838705,-500.0,0.00016438,2]
[350927020,1738207838714,-504.00836435,0.00016438,2]
[350927021,1738207838724,-500.0,0.00016438,2]
[350927022,1738207838734,-151.0,0.00016438,2]
[350927023,1738207838743,-151.0,0.00016438,2]
[350927024,1738207838752,-151.0,0.00016438,2]
[350927025,1738207838762,-500.0,0.00016438,2]
[350927026,1738207838771,-500.0,0.00016438,2]
[350927027,1738207838780,-151.0,0.00016438,2]
[350927028,1738207838790,-151.0,0.00016438,2]
[350927029,1738207838799,-151.0,0.00016438,2]
[350927030,1738207838809,-500.0,0.00016438,2]
[350927031,1738207838818,-151.0,0.00016438,2]
[350927032,1738207838827,-151.0,0.00016438,2]
[350927033,1738207838836,-151.0,0.00016438,2]
[350927034,1738207838847,-500.0,0.00016438,2]
[350927035,1738207838856,-525.32656818,0.00016438,2]
[350927036,1738207838866,-827.44,0.00016438,2]
[350927037,1738207838875,-586.53,0.00016438,2]
[350927038,1738207838889,-500.0,0.00016438,2]
[350927039,1738207838899,-151.918271,0.00016438,2]
[350927040,1738207838908,-500.0,0.00016438,2]
[350927041,1738207838918,-500.0,0.00016438,2]
[350927042,1738207838929,-305.62060968,0.00016438,2]
[350927043,1738207838939,-151.0,0.00016438,2]
[350927044,1738207838948,-151.0,0.00016438,2]
[350927045,1738207838958,-151.0,0.00016438,2]
[350927046,1738207838968,-500.0,0.00016438,2]
[350927047,1738207838977,-500.0,0.00016438,2]
[350927048,1738207838986,-538.54,0.00016438,2]
[350927049,1738207838995,-176.914236,0.00016438,2]
[350927050,1738207839005,-231.924004,0.00016438,2]
[350927051,1738207839014,-500.0,0.00016438,2]
[350927052,1738207839023,-500.0,0.00016438,2]
[350927053,1738207839033,-151.0,0.00016438,2]
[350927054,1738207839042,-151.0,0.00016438,2]
[350927055,1738207839052,-151.0,0.00016438,2]
[350927056,1738207839061,-1071.42,0.00016438,2]
[350927057,1738207839070,-151.0,0.00016438,2]
[350927058,1738207839079,-151.0,0.00016438,2]
[350927059,1738207839089,-151.0,0.00016438,2]
[350927060,1738207839098,-151.0,0.00016438,2]
[350927061,1738207839108,-151.0,0.00016438,2]
[350927062,1738207839118,-151.0,0.00016438,2]
[350927063,1738207839127,-500.0,0.00016438,2]
[350927064,1738207839137,-500.0,0.00016438,2]
[350927065,1738207839146,-505.80871717,0.00016438,2]
[350927066,1738207839155,-504.239087,0.00016438,2]
[350927067,1738207839165,-507.8994873,0.00016438,2]
[350927068,1738207839174,-628.29,0.00016438,2]
[350927069,1738207839183,-500.0,0.00016438,2]
[350927070,1738207839192,-500.0,0.00016438,2]
[350927071,1738207839201,-500.0,0.00016438,2]
[350927072,1738207839211,-151.0,0.00016438,2]
[350927073,1738207839220,-151.0,0.00016438,2]
[350927074,1738207839229,-151.0,0.00016438,2]
[350927075,1738207839238,-151.0,0.00016438,2]
[350927076,1738207839247,-500.0,0.00016438,2]
[350927077,1738207839255,-151.0,0.00016438,2]
[350927078,1738207839265,-151.0,0.00016438,2]
[350927079,1738207839274,-151.0,0.00016438,2]
[350927080,1738207839284,-151.0,0.00016438,2]
[350927081,1738207839293,-151.0,0.00016438,2]
[350927082,1738207839302,-151.0,0.00016438,2]
[350927083,1738207839311,-151.0,0.00016438,2]
[350927084,1738207839321,-151.0,0.00016438,2]
[350927085,1738207839330,-1301.08,0.00016438,2]
[350927086,1738207839339,-500.0,0.00016438,2]
[350927087,1738207839348,-509.56558576,0.00016438,2]
[350927088,1738207839359,-1738.12,0.00016438,2]
[350927089,1738207839368,-535.42,0.00016438,2]
[350927090,1738207839378,-500.0,0.00016438,2]
[350927091,1738207839387,-500.0,0.00016438,2]
[350927092,1738207839397,-826.77,0.00016438,2]
[350927093,1738207839406,-151.0,0.00016438,2]
[350927094,1738207839415,-151.0,0.00016438,2]
[350927095,1738207839425,-151.0,0.00016438,2]
[350927096,1738207839434,-544.28,0.00016438,2]
[350927097,1738207839443,-18730.08,0.00016438,2]
[350927098,1738207839452,-576.76,0.00016438,2]
[350927099,1738207839461,-151.0,0.00016438,2]
[350927100,1738207839471,-151.0,0.00016438,2]
[350927101,1738207839480,-151.0,0.00016438,2]
[350927102,1738207839490,-151.0,0.00016438,2]
[350927103,1738207839499,-151.0,0.00016438,2]
[350927104,1738207839510,-151.0,0.00016438,2]
[350927105,1738207839519,-1110.85,0.00016438,2]
[350927106,1738207839528,-520.34246035,0.00016438,2]
[350927107,1738207839537,-151.0,0.00016438,2]
[350927108,1738207839547,-511.1380657,0.00016438,2]
[350927109,1738207839556,-515.42652473,0.00016438,2]
[350927110,1738207839565,-1063.53,0.00016438,2]
[350927111,1738207839575,-695.18,0.00016438,2]
[350927112,1738207839584,-538.52,0.00016438,2]
[350927113,1738207839593,-334.391475,0.00016438,2]
[350927114,1738207839603,-334.391475,0.00016438,2]
[350927115,1738207839615,-334.391475,0.00016438,2]
[350927117,1738207839625,-334.391475,0.00016438,2]
[350927118,1738207839635,-334.391475,0.00016438,2]
[350927119,1738207839644,-334.391475,0.00016438,2]
[350927120,1738207839653,-1432.75,0.00016438,2]
[350927121,1738207839663,-916.61,0.00016438,2]
[350927122,1738207839672,-684.3,0.00016438,2]
[350927123,1738207839681,-2172.94,0.00016438,2]
[350927124,1738207839690,-450.65165096,0.00016438,2]
[350927125,1738207839699,-501.84088076,0.00016438,2]
[350927126,1738207839708,-1054.53,0.00016438,2]
[350927127,1738207839717,-151.0,0.00016438,2]
[350927128,1738207839727,-151.0,0.00016438,2]
[350927129,1738207839736,-151.0,0.00016438,2]
[350927130,1738207839745,-151.0,0.00016438,2]
[350927131,1738207839754,-505.35055994,0.00016438,2]
[350927132,1738207839763,-500.0,0.00016438,2]
[350927133,1738207839772,-688.26,0.00016438,2]
[350927134,1738207839782,-152.834733,0.00016438,2]
[350927135,1738207839791,-500.0,0.00016438,2]
[350927137,1738207839800,-1993.33,0.00016438,2]
[350927140,1738207839809,-2166.68,0.00016438,2]
[350927143,1738207839819,-557.36926622,0.00016438,2]
[350927145,1738207839827,-151.0,0.00016438,2]
[350927147,1738207839836,-151.0,0.00016438,2]
[350927149,1738207839845,-151.0,0.00016438,2]
[350927150,1738207839854,-151.0,0.00016438,2]
[350927151,1738207839866,-151.0,0.00016438,2]
[350927152,1738207839875,-151.0,0.00016438,2]
[350927153,1738207839884,-151.0,0.00016438,2]
[350927154,1738207839897,-250.367684,0.00016438,2]
[350927155,1738207839907,-1030.47,0.00016438,2]
[350927157,1738207840041,-1266.72,0.00016438,2]
[350927158,1738207840051,-846.42,0.00016438,2]
[350927160,1738207840060,-1033.48,0.00016438,2]
[350927161,1738207840069,-151.0,0.00016438,2]
[350927162,1738207840078,-151.0,0.00016438,2]
[350927163,1738207840087,-151.0,0.00016438,2]
[350927164,1738207840096,-151.0,0.00016438,2]
[350927165,1738207840107,-151.0,0.00016438,2]
[350927166,1738207840116,-151.0,0.00016438,2]
[350927167,1738207840126,-151.0,0.00016438,2]
[350927168,1738207840135,-151.0,0.00016438,2]
[350927169,1738207840144,-6878.57,0.00016438,2]
[350927170,1738207840153,-151.0,0.00016438,2]
[350927171,1738207840162,-296.07305269,0.00016438,2]
[350927172,1738207840172,-631.34,0.00016438,2]
[350927173,1738207840182,-119.47149621,0.00016438,2]
[350927174,1738207840196,-517.1691499,0.00016438,2]
[350927175,1738207840207,-1174.97935389,0.00016438,2]
[350927176,1738207840216,-1063.21,0.00016438,2]
[350927177,1738207840226,-151.0,0.00016438,2]
[350927178,1738207840235,-151.0,0.00016438,2]
[350927179,1738207840243,-151.0,0.00016438,2]
[350927180,1738207840252,-500.0,0.00016438,2]
[350927181,1738207840262,-151.0,0.00016438,2]
[350927182,1738207840271,-151.0,0.00016438,2]
[350927184,1738207840281,-151.0,0.00016438,2]
[350927185,1738207840290,-3271.81,0.00016438,2]
[350927186,1738207840299,-3590.9,0.00016438,2]
[350927187,1738207840308,-4261.35,0.00016438,2]
[350927188,1738207840317,-500.0,0.00016438,2]
[350927189,1738207840326,-920.31,0.00016438,2]
[350927190,1738207840335,-1999.14,0.00016438,2]
[350927191,1738207840344,-500.0,0.00016438,2]
[350927192,1738207840355,-500.0,0.00016438,2]
[350927193,1738207840364,-583.33956582,0.00016438,2]
[350927194,1738207840373,-500.0,0.00016438,2]
[350927195,1738207840382,-500.0,0.00016438,2]
[350927196,1738207840391,-500.0,0.00016438,2]
[350927197,1738207840400,-500.0,0.00016438,2]
[350927198,1738207840409,-151.0,0.00016438,2]
[350927199,1738207840418,-292.172199,0.00016438,2]
[350927200,1738207840427,-6526.25,0.00016438,2]
[350927201,1738207840436,-153.0,0.000165,2]
[350927202,1738207840446,-161.490351,0.000165,2]
[350927203,1738207840455,-153.0,0.000165,2]
[350927204,1738207840464,-154.3747797,0.000165,2]
[350927205,1738207840473,-215.2923755,0.000165,2]
[350927206,1738207840482,-211.130354,0.00016519,2]
[350927207,1738207840492,-151.0,0.00016519,2]
[350927208,1738207840501,-334.391475,0.00016519,2]
[350927209,1738207840510,-334.391475,0.00016519,2]
[350927210,1738207840519,-152.136843,0.00016519,2]
[350927211,1738207840528,-151.0,0.00016519,2]
[350927212,1738207840537,-151.0,0.00016519,2]
[350927213,1738207840546,-151.0,0.00016519,2]
[350927214,1738207840555,-151.0,0.00016519,2]
[350927215,1738207840564,-537.0,0.00016519,2]
[350927216,1738207840573,-2095.969,0.00016519,2]
[350927217,1738207840582,-2316.014,0.00016519,2]
[350927218,1738207840591,-151.519,0.00016519,2]
[350927219,1738207840600,-152.0,0.0001653,2]
[350927220,1738207840609,-25184.27556907,0.0001657,5]
[350927221,1738207840618,-21862.38368529,0.0001657,2]
[350927222,1738207840630,-1641.86771858,0.0001657,2]
[350927223,1738207840738,-988.48,0.0001657,2]
[350927245,1738207843216,-295.410988,0.00016438,2]
[350927246,1738207843226,-295.410988,0.00016438,2]
[350927247,1738207843236,-209.178024,0.00016438,2]
[350927248,1738207843269,-86.232964,0.00016438,2]
[350927249,1738207843280,-500.0,0.00016438,2]
[350927250,1738207843290,-64.767036,0.00016519,2]
[350927251,1738207843325,-230.643952,0.00016519,2]
[350927252,1738207843335,-584.356048,0.0001657,2]
[350927299,1738207846308,-295.410988,0.00016438,2]
[350927301,1738207846318,-51.589012,0.00016438,2]
[350927303,1738207846329,-243.821976,0.00016438,2]
[350927305,1738207846339,-295.410988,0.00016438,2]
[350927307,1738207846349,-295.410988,0.00016519,2]
[350927309,1738207846358,-59.598905,0.00016519,2]
[350927311,1738207846371,-335.401095,0.00016519,2]
[350927313,1738207846380,-4486.66073232,0.0001657,2]
[350927315,1738207846392,-13912.12106372,0.0001657,2]
[350927317,1738207846403,-8245.06840093,0.0001657,2]
[350927320,1738207846421,-58144.30780642,0.0001657,2]
[350927363,1738208390167,165.442479,0.00013973,2]
[350927367,1738208924153,483.17,0.00010959,2]
[350927368,1738208932872,5000.0,0.00015101,2]
[350927369,1738208934559,434.28,0.00010959,2]
[350927370,1738208948558,1639.84704964,0.00015101,2]
[350927371,1738209007061,500.0,0.0001452,2]
[350927417,1738209032630,-1853.0093177,0.00015167,2]
[350927419,1738209032639,-166.84275103,0.00015301,2]
[350927421,1738209032650,-219.37619585,0.00015456,2]
[350927423,1738209032659,-300.0,0.00015555,2]
[350927425,1738209032668,-1638.12425343,0.00015556,2]
[350927427,1738209032679,-23261.87574657,0.00015556,2]
[350927429,1738209032689,-780.20617732,0.00016337,2]
[350927431,1738209032698,-176.9798005,0.00016338,2]
[350927432,1738209032707,-587.57639626,0.00016437,2]
[350927434,1738209032717,-587.57639626,0.00016437,2]
[350927436,1738209032726,-587.57639626,0.00016437,2]
[350927438,1738209032736,-587.57639626,0.00016437,2]
[350927440,1738209032745,-587.57639626,0.00016437,2]
[350927442,1738209032755,-587.57639626,0.00016437,2]
[350927444,1738209032764,-587.57639626,0.00016437,2]
[350927446,1738209032773,-587.57639626,0.00016437,2]
[350927448,1738209032783,-500.0,0.00016437,2]
[350927450,1738209032792,-587.57639626,0.00016437,2]
[350927452,1738209032801,-500.0,0.00016437,2]
[350927454,1738209032810,-500.0,0.00016437,2]
[350927456,1738209032819,-488.79873635,0.00016437,2]
[350927457,1738209032829,-587.57639626,0.00016437,2]
[350927460,1738209032838,-587.57639626,0.00016437,2]
[350927462,1738209032847,-500.0,0.00016437,2]
[350927465,1738209032857,-500.0,0.00016437,2]
[350927468,1738209032866,-482.52802572,0.00016437,2]
[350927471,1738209032876,-206.88110532,0.00016437,2]
[350927474,1738209032885,-500.0,0.00016438,2]
[350927477,1738209032897,-500.0,0.00016438,2]
[350927480,1738209032906,-500.0,0.00016438,2]
[350927483,1738209032915,-500.0,0.00016438,2]
[350927486,1738209032924,-503.46899069,0.00016438,2]
[350927489,1738209032933,-500.0,0.00016438,2]
[350927491,1738209032942,-500.0,0.00016438,2]
[350927494,1738209032952,-500.0,0.00016438,2]
[350927497,1738209032961,-500.0,0.00016438,2]
[350927500,1738209032971,-500.0,0.00016438,2]
[350927502,1738209032980,-792.96,0.00016438,2]
[350927504,1738209032989,-500.0,0.00016438,2]
[350927506,1738209032998,-500.0,0.00016438,2]
[350927508,1738209033007,-500.0,0.00016438,2]
[350927510,1738209033016,-559.08203318,0.00016438,2]
[350927512,1738209033026,-582.93,0.00016438,2]
[350927514,1738209033035,-261.12284286,0.00016438,2]
[350927516,1738209033044,-500.0,0.00016438,2]
[350927518,1738209033054,-500.0,0.00016438,2]
[350927520,1738209033063,-500.0,0.00016438,2]
[350927522,1738209033073,-500.0,0.00016438,2]
[350927524,1738209033083,-500.0,0.00016438,2]
[350927526,1738209033092,-500.0,0.00016438,2]
[350927528,1738209033102,-500.0,0.00016438,2]
[350927530,1738209033111,-500.0,0.00016438,2]
[350927532,1738209033121,-514.44391393,0.00016438,2]
[350927534,1738209033132,-536.94,0.00016438,2]
[350927536,1738209033143,-500.0,0.00016438,2]
[350927537,1738209033153,-500.0,0.00016438,2]
[350927539,1738209033163,-500.0,0.00016438,2]
[350927541,1738209033172,-500.0,0.00016438,2]
[350927543,1738209033182,-500.0,0.00016438,2]
[350927545,1738209033191,-500.0,0.00016438,2]
[350927547,1738209033200,-511.52375448,0.00016438,2]
[350927549,1738209033210,-512.55693462,0.00016438,2]
[350927551,1738209033220,-500.0,0.00016438,2]
[350927553,1738209033229,-507.87858283,0.00016438,2]
[350927555,1738209033239,-515.96219541,0.00016438,2]
[350927557,1738209033249,-1047.61,0.00016438,2]
[350927559,1738209033259,-513.64464823,0.00016438,2]
[350927561,1738209033269,-500.0,0.00016438,2]
[350927563,1738209033279,-372.36604059,0.00016438,2]
[350927564,1738209033288,-523.50836409,0.00016438,2]
[350927565,1738209033299,-509.39892049,0.00016438,2]
[350927566,1738209033312,-502.69108418,0.00016438,2]
[350927567,1738209033321,-507.41137883,0.00016438,2]
[350927568,1738209033331,-345.91555094,0.00016438,2]
[350927569,1738209033341,-622.94,0.00016438,2]
[350927570,1738209033351,-502.43124892,0.00016438,2]
[350927571,1738209033360,-510.4095393,0.00016438,2]
[350927572,1738209033369,-505.23648896,0.00016438,2]
[350927573,1738209033381,-606.29413628,0.00016438,2]
[350927574,1738209033391,-506.61853417,0.00016438,2]
[350927575,1738209033402,-505.62911672,0.00016438,2]
[350927576,1738209033412,-487.99849591,0.00016438,2]
[350927577,1738209033421,-506.46905238,0.00016438,2]
[350927578,1738209033431,-505.56368739,0.00016438,2]
[350927579,1738209033440,-508.55332126,0.00016438,2]
[350927580,1738209033451,-500.0,0.00016438,2]
[350927581,1738209033461,-504.06376285,0.00016438,2]
[350927582,1738209033472,-509.88046329,0.00016438,2]
[350927583,1738209033483,-506.06834345,0.00016438,2]
[350927584,1738209033493,-513.53795024,0.00016438,2]
[350927585,1738209033503,-505.83065756,0.00016438,2]
[350927586,1738209033513,-506.84226342,0.00016438,2]
[350927587,1738209033523,-500.0,0.00016438,2]
[350927588,1738209033532,-508.32934745,0.00016438,2]
[350927589,1738209033542,-512.7187502,0.00016438,2]
[350927590,1738209033551,-510.98026897,0.00016438,2]
[350927591,1738209033560,-500.0,0.00016438,2]
[350927592,1738209033572,-505.37191104,0.00016438,2]
[350927593,1738209033582,-512.54691454,0.00016438,2]
[350927594,1738209033592,-509.3161397,0.00016438,2]
[350927595,1738209033603,-515.46699391,0.00016438,2]
[350927596,1738209033614,-512.04147349,0.00016438,2]
[350927597,1738209033624,-335.14943626,0.00016438,2]
[350927598,1738209033633,-506.58560089,0.00016438,2]
[350927599,1738209033646,-507.44792533,0.00016438,2]
[350927600,1738209033656,-515.43985974,0.00016438,2]
[350927601,1738209033666,-260.6587676,0.00016438,2]
[350927602,1738209033676,-492.18030788,0.00016438,2]
[350927603,1738209033686,-512.88986942,0.00016438,2]
[350927604,1738209033696,-514.19772155,0.00016438,2]
[350927605,1738209033705,-1978.34,0.00016438,2]
[350927606,1738209033715,-503.50218226,0.00016438,2]
[350927607,1738209033725,-517.55490453,0.00016438,2]
[350927608,1738209033735,-504.20449591,0.00016438,2]
[350927609,1738209033744,-500.0,0.00016438,2]
[350927610,1738209033755,-513.58464927,0.00016438,2]
[350927611,1738209033764,-648.48394815,0.00016438,2]
[350927612,1738209033774,-510.25435663,0.00016438,2]
[350927613,1738209033784,-510.4776223,0.00016438,2]
[350927614,1738209033794,-311.52069259,0.00016438,2]
[350927615,1738209033803,-500.0,0.00016438,2]
[350927616,1738209033813,-376.30010556,0.00016438,2]
[350927617,1738209033823,-507.94245372,0.00016438,2]
[350927618,1738209033834,-500.0,0.00016438,2]
[350927619,1738209033844,-517.30202944,0.00016438,2]
[350927620,1738209033854,-203.70760921,0.00016438,2]
[350927621,1738209033865,-320.2650989,0.00016438,2]
[350927622,1738209033880,-192.55708986,0.00016438,2]
[350927623,1738209033890,-506.86110125,0.00016438,2]
[350927624,1738209033903,-510.80358895,0.00016438,2]
[350927625,1738209033912,-504.50632288,0.00016438,2]
[350927626,1738209033922,-510.529121,0.00016438,2]
[350927627,1738209033932,-511.79650457,0.00016438,2]
[350927628,1738209033942,-1288.53,0.00016438,2]
[350927629,1738209033951,-506.58122246,0.00016438,2]
[350927630,1738209033961,-512.14704955,0.00016438,2]
[350927631,1738209033970,-1165.93607385,0.00016438,2]
[350927632,1738209033983,-562.26392615,0.00016438,2]
[350927633,1738209033993,-511.8525891,0.00016438,2]
[350927634,1738209034003,-511.64782178,0.00016438,2]
[350927635,1738209034012,-542.43,0.00016438,2]
[350927636,1738209034021,-512.28626461,0.00016438,2]
[350927637,1738209034031,-151.0,0.00016438,2]
[350927638,1738209034040,-514.88466092,0.00016438,2]
[350927639,1738209034050,-833.99,0.00016438,2]
[350927640,1738209034060,-521.2524292,0.00016438,2]
[350927641,1738209034070,-510.95215057,0.00016438,2]